bitfinex/quotes_SOLUSD_20241231
["timestamp","ask_amount","ask_price","bid_price","bid_amount"]
[1735617910573,1.5305,190.51,190.48,10.63327563]
[1735617912085,1.5305,190.51,190.46,10.63327563]
[1735617912284,1.5305,190.51,190.45,10.63327563]
[1735617912606,1.5305,190.51,190.46,10.63327563]
[1735617913172,1.5305,190.51,190.45,11.42064895]
[1735617913465,1.5305,190.51,190.45,10.63327563]
[1735617913871,1.5305,190.51,190.46,10.63327563]
[1735617914301,1.5305,190.51,190.45,10.63327563]
[1735617914699,1.5305,190.51,190.44,10.63327563]
[1735617915002,1.5305,190.51,190.41,10.63327563]
[1735617915184,1.5305,190.51,190.42,10.63327563]
[1735617915383,1.5305,190.51,190.44,10.63327563]
[1735617915874,1.5305,190.51,190.43,10.63327563]
[1735617917084,1.5305,190.51,190.44,10.63327563]
[1735617922506,1.5305,190.51,190.46,10.63327563]
[1735617922687,1.5305,190.51,190.47,10.63327563]
[1735617924988,1.5305,190.51,190.45,10.63327563]
[1735617925693,1.5305,190.51,190.46,10.63327563]
[1735617926316,1.5305,190.51,190.45,10.63327563]
[1735617926814,1.5305,190.51,190.42,23.776884]
[1735617926989,1.5305,190.51,190.44,10.63327563]
[1735617927190,1.5305,190.51,190.45,11.42068882]
[1735617927412,1.5305,190.51,190.46,10.63327563]
[1735617927781,1.5305,190.51,190.45,11.42068882]
[1735617927986,1.5305,190.51,190.46,10.63327563]
[1735617928189,1.5305,190.51,190.47,10.63327563]
[1735617928827,1.5305,190.51,190.46,31.42061083]
[1735617929120,1.5305,190.51,190.47,10.63327563]
[1735617931320,6.3444,190.54,190.49,10.63327563]
[1735617935000,6.3444,190.54,190.5,10.63327563]
[1735617935295,6.3444,190.54,190.49,10.63327563]
[1735617938119,6.3444,190.54,190.48,0.78729932]
[1735617938296,6.3444,190.54,190.49,10.63327563]
[1735617943230,6.3444,190.54,190.46,0.78725135]
[1735617943407,6.3444,190.54,190.45,11.42053022]
[1735617943608,6.3444,190.54,190.45,10.63327563]
[1735617944705,6.3444,190.54,190.43,0.78741093]
[1735617944706,6.3444,190.54,190.43,11.42068656]
[1735617945007,1.6198,190.53,190.43,11.42068656]
[1735617946707,1.6198,190.53,190.42,23.76197563]
[1735617947244,1.6198,190.53,190.43,10.63327563]
[1735617948637,1.6198,190.53,190.42,10.63327563]
[1735617948814,1.6198,190.53,190.41,10.63327563]
[1735617949013,6.2361,190.52,190.41,10.63327563]
[1735617950738,6.2361,190.52,190.4,11.42085897]
[1735617950739,1.6198,190.51,190.4,11.42085897]
[1735617951111,1.6198,190.51,190.41,10.63327563]
[1735617951540,1.6198,190.51,190.4,10.63327563]
[1735617952112,1.6198,190.51,190.41,10.63327563]
[1735617952633,1.6198,190.51,190.36,23.776884]
[1735617952814,1.6198,190.51,190.41,10.63327563]
[1735617958240,1.6198,190.51,190.42,10.63327563]
[1735617958862,1.6198,190.51,190.39,0.78752558]
[1735617959016,1.6198,190.51,190.41,10.63327563]
[1735617959332,1.6198,190.51,190.42,10.63327563]
[1735617960138,1.6198,190.51,190.44,10.63327563]
[1735617960444,1.6198,190.51,190.45,10.63327563]
[1735617960750,1.6198,190.51,190.46,10.63327563]
[1735617963057,1.6198,190.51,190.45,10.63327563]
[1735617963358,1.6198,190.51,190.44,10.63327563]
[1735617963518,1.6198,190.51,190.45,10.63327563]
[1735617964028,1.6198,190.51,190.43,20.78747581]
[1735617964244,1.6198,190.51,190.44,10.63327563]
[1735617964427,1.6198,190.51,190.43,10.63327563]
[1735617964836,1.6198,190.51,190.44,10.63327563]
[1735617965642,1.6198,190.51,190.45,10.63327563]
[1735617965842,1.6198,190.51,190.46,10.63327563]
[1735617970328,1.6198,190.51,190.47,10.63327563]
[1735617970817,1.6198,190.51,190.48,10.63327563]
[1735617971024,1.6198,190.51,190.49,10.63327563]
[1735617971425,1.6198,190.51,190.48,10.63327563]
[1735617972149,6.2361,190.52,190.49,10.63327563]
[1735617975053,7.9546,190.56,190.5,10.63327563]
[1735617976051,7.9546,190.56,190.49,10.63327563]
[1735617976267,7.9546,190.56,190.48,10.63327563]
[1735617976757,7.9546,190.56,190.49,10.63327563]
[1735617979265,7.9546,190.56,190.48,10.63327563]
[1735617980756,7.9546,190.56,190.49,10.63327563]
[1735617987068,7.9546,190.56,190.5,10.63327563]
[1735617988155,7.9546,190.56,190.52,10.63327563]
[1735617988380,7.9546,190.56,190.53,10.63327563]
[1735617988667,7.9546,190.56,190.49,24.5640198]
[1735617988668,7.9546,190.56,190.52,10.63327563]
[1735617988835,8.1975,190.61,190.53,10.63327563]
[1735617989671,8.1975,190.61,190.54,10.63327563]
[1735617990546,8.1975,190.61,190.55,10.63327563]
[1735617992278,8.1975,190.61,190.56,10.63327563]
[1735617992577,8.1975,190.61,190.58,10.63327563]
[1735617994477,8.1975,190.61,190.57,10.63327563]
[1735617995867,8.1975,190.61,190.56,10.63327563]
[1735617996081,8.1975,190.61,190.51,0.78699837]
[1735617996372,8.1975,190.61,190.42,162.1571]
[1735617996373,10.8206,190.61,190.49,10.63327563]
[1735618000476,10.8206,190.61,190.48,10.63327563]
[1735618000684,7.6886,190.58,190.46,20.0]
[1735618000847,20.0,190.55,190.44,0.78729953]
[1735618001051,20.0,190.55,190.47,10.63327563]
[1735618001271,7.6886,190.58,190.47,10.63327563]
[1735618005554,7.6886,190.58,190.48,23.776884]
[1735618006392,7.6886,190.54,190.45,10.63327563]
[1735618006563,7.6886,190.54,190.46,23.776884]
[1735618006763,7.6886,190.54,190.46,34.41015963]
[1735618007476,7.55017555,190.54,190.46,34.41015963]
[1735618008959,7.55017555,190.54,190.47,10.63327563]
[1735618009361,7.55017555,190.54,190.46,10.63327563]
[1735618009697,7.55017555,190.54,190.46,23.776884]
[1735618009873,7.55017555,190.54,190.46,34.41015963]
[1735618012076,7.55017555,190.54,190.46,23.776884]
[1735618013865,7.55017555,190.54,190.45,10.63327563]
[1735618017285,7.55017555,190.54,190.46,10.63327563]
[1735618018195,7.55017555,190.54,190.41,0.78742257]
[1735618018508,7.55017555,190.54,190.43,10.63327563]
[1735618019371,10.17437555,190.54,190.43,10.63327563]
[1735618021493,7.55017555,190.54,190.45,10.63327563]
[1735618021713,7.55017555,190.54,190.46,10.63327563]
[1735618022695,7.55017555,190.54,190.47,34.41015963]
[1735618022867,7.55017555,190.54,190.48,10.63327563]
[1735618024396,7.55017555,190.54,190.47,34.41015963]
[1735618024573,7.55017555,190.54,190.47,23.776884]
[1735618025396,7.55017555,190.54,190.47,34.41015963]
[1735618027097,7.55017555,190.54,190.47,23.776884]
[1735618028377,7.55017555,190.54,190.42,0.78732695]
[1735618028581,2.6242,190.53,190.42,10.63327563]
[1735618029083,7.55017555,190.54,190.44,10.63327563]
[1735618029279,7.55017555,190.54,190.44,34.41015963]
[1735618030299,7.55017555,190.54,190.45,23.776884]
[1735618030610,7.55017555,190.54,190.47,10.63327563]
[1735618033677,7.55017555,190.54,190.48,10.63327563]
[1735618033885,7.55017555,190.54,190.44,23.776884]
[1735618034078,7.55017555,190.54,190.45,10.63327563]
[1735618034408,7.55017555,190.54,190.41,0.78731134]
[1735618034409,7.55017555,190.54,190.46,10.63327563]
[1735618035504,7.55017555,190.54,190.44,23.776884]
[1735618035706,7.55017555,190.54,190.46,23.776884]
[1735618036507,7.55017555,190.54,190.46,10.63327563]
[1735618038811,7.55017555,190.54,190.44,10.63327563]
[1735618040108,7.55017555,190.54,190.44,23.776884]
[1735618040492,6.4801,190.52,190.41,10.63327563]
[1735618041806,6.4801,190.52,190.42,23.776884]
[1735618042110,1.5305,190.47,190.39,10.63327563]
[1735618042280,1.5305,190.47,190.38,10.63327563]
[1735618044400,1.5305,190.47,190.38,23.776884]
[1735618045104,1.5305,190.47,190.35,0.78771587]
[1735618045296,1.5305,190.47,190.36,10.63327563]
[1735618045497,6.3381,190.46,190.36,10.63327563]
[1735618047111,6.3381,190.46,190.35,34.41015963]
[1735618052117,7.9768,190.42,190.32,0.78779544]
[1735618052323,7.9768,190.42,190.27,13.1385]
[1735618052324,7.9768,190.42,190.29,0.7879534]
[1735618052525,7.9768,190.42,190.29,11.42122903]
[1735618052698,1.6387,190.38,190.29,0.7879534]
[1735618052891,6.3381,190.37,190.27,10.63327563]
[1735618053097,6.3381,190.37,190.25,0.78808623]
[1735618053405,6.3381,190.37,190.26,10.63327563]
[1735618053928,20.0,190.34,190.22,0.78820539]
[1735618054125,1.6387,190.33,190.24,10.63327563]
[1735618054918,1.6387,190.33,190.25,34.41015963]
[1735618055125,1.6387,190.33,190.26,10.63327563]
[1735618055399,1.6387,190.33,190.27,23.776884]
[1735618055713,1.6387,190.33,190.27,10.63327563]
[1735618055917,1.6387,190.33,190.27,23.776884]
[1735618056100,1.6387,190.33,190.27,10.63327563]
[1735618056730,1.6387,190.33,190.27,23.776884]
[1735618057136,1.6387,190.33,190.27,10.63327563]
[1735618057833,1.6387,190.33,190.28,23.776884]
[1735618058302,1.6387,190.33,190.28,34.41015963]
[1735618058615,1.6387,190.33,190.28,23.776884]
[1735618059236,1.6387,190.33,190.27,10.63327563]
[1735618059436,1.6387,190.33,190.28,23.776884]
[1735618059937,1.6387,190.33,190.27,10.63327563]
[1735618060108,1.6387,190.33,190.25,10.63327563]
[1735618060837,6.6254,190.32,190.23,10.63327563]
[1735618061436,6.6254,190.32,190.22,34.41015963]
[1735618062504,6.6254,190.32,190.21,10.63327563]
[1735618063004,6.6254,190.32,190.22,23.776884]
[1735618063614,6.6254,190.32,190.21,34.41015963]
[1735618063935,6.6254,190.32,190.21,23.776884]
[1735618064936,1.6115,190.31,190.2,23.776884]
[1735618065128,6.6254,190.3,190.2,23.776884]
[1735618065435,6.6254,190.3,190.19,23.776884]
[1735618065944,6.6254,190.3,190.19,10.63327563]
[1735618066308,6.6254,190.3,190.21,10.63327563]
[1735618067836,6.6254,190.3,190.19,10.63327563]
[1735618068140,6.6254,190.3,190.2,10.63327563]
[1735618069442,6.6254,190.3,190.22,23.776884]
[1735618069634,6.6254,190.3,190.2,10.63327563]
[1735618069843,6.6254,190.3,190.21,23.776884]
[1735618074139,6.6254,190.3,190.19,10.63327563]
[1735618074449,6.6254,190.3,190.2,23.776884]
[1735618075639,6.6254,190.3,190.2,10.63327563]
[1735618078148,6.6254,190.3,190.2,11.42170109]
[1735618078847,6.6254,190.3,190.21,10.63327563]
[1735618080955,6.6254,190.3,190.19,10.63327563]
[1735618081147,1.6292,190.29,190.19,10.63327563]
[1735618081726,1.6292,190.29,190.2,10.63327563]
[1735618082565,1.6292,190.29,190.21,23.776884]
[1735618085069,1.6292,190.29,190.18,23.776884]
[1735618085227,1.6292,190.29,190.16,13.1462]
[1735618085228,1.6292,190.29,190.2,23.776884]
[1735618086168,1.6292,190.29,190.2,34.41015963]
[1735618086336,1.6292,190.29,190.21,10.63327563]
[1735618087866,1.6292,190.29,190.22,23.776884]
[1735618092071,1.6292,190.29,190.22,10.63327563]
[1735618093674,6.6254,190.3,190.27,23.776884]
[1735618095045,6.6254,190.3,190.26,23.776884]
[1735618095244,6.6254,190.3,190.26,34.41015963]
[1735618098167,6.6254,190.3,190.26,23.776884]
[1735618098654,6.6254,190.3,190.25,23.776884]
[1735618102245,6.6254,190.3,190.22,10.63327563]
[1735618102979,6.6254,190.3,190.23,23.776884]
[1735618104186,6.6254,190.3,190.22,23.776884]
[1735618104951,6.6254,190.3,190.2,10.63327563]
[1735618105586,6.6254,190.3,190.21,23.776884]
[1735618106382,6.6254,190.3,190.21,10.63327563]
[1735618106580,1.5325,190.29,190.2,23.776884]
[1735618110789,9.80352074,190.29,190.2,23.776884]
[1735618110985,6.3754,190.28,190.17,0.78847173]
[1735618111158,6.3754,190.28,190.18,10.63327563]
[1735618111791,14.64642074,190.28,190.18,34.41015963]
[1735618112089,14.64642074,190.28,190.19,23.776884]
[1735618112592,14.64642074,190.28,190.19,24.5653813]
[1735618113379,14.64642074,190.28,190.19,35.19865693]
[1735618113563,14.64642074,190.28,190.2,10.63327563]
[1735618113888,6.3754,190.28,190.22,23.776884]
[1735618115586,6.3754,190.28,190.24,23.776884]
[1735618115801,6.3754,190.28,190.24,34.41015963]
[1735618116571,6.3754,190.28,190.26,23.776884]
[1735618116884,6.3754,190.28,190.24,10.63327563]
[1735618117786,6.3754,190.28,190.22,10.63327563]
[1735618117969,6.3754,190.28,190.23,23.776884]
[1735618120694,6.3754,190.28,190.22,23.776884]
[1735618121190,6.3754,190.28,190.21,23.776884]
[1735618122998,6.3754,190.28,190.18,10.63327563]
[1735618123294,6.3754,190.28,190.18,11.4217713]
[1735618124173,6.3754,190.28,190.19,35.19866908]
[1735618124492,14.64642074,190.28,190.19,35.19866908]
[1735618125493,6.3754,190.28,190.19,35.19866908]
[1735618125698,6.3754,190.28,190.21,23.776884]
[1735618125899,6.3754,190.28,190.21,11.42165494]
[1735618126114,6.3754,190.28,190.21,10.63327563]
[1735618126588,6.3754,190.28,190.21,23.776884]
[1735618127405,6.3754,190.28,190.19,10.63327563]
[1735618128704,6.3754,190.28,190.2,23.776884]
[1735618135812,6.3754,190.28,190.21,10.63327563]
[1735618135988,6.3754,190.28,190.21,11.42170968]
[1735618137117,6.3754,190.28,190.22,23.776884]
[1735618140727,6.3754,190.28,190.24,23.776884]
[1735618142498,6.3754,190.28,190.24,34.41015963]
[1735618143517,6.3754,190.28,190.24,23.776884]
[1735618147738,1.5325,190.29,190.24,34.41015963]
[1735618148025,1.5325,190.29,190.26,23.776884]
[1735618148220,6.4515,190.32,190.26,35.19829785]
[1735618149531,6.4515,190.32,190.26,23.776884]
[1735618156843,1.5765,190.34,190.3,23.776884]
[1735618157030,8.27102074,190.36,190.32,23.776884]
[1735618157327,14.55892074,190.37,190.32,23.776884]
[1735618157530,14.55892074,190.37,190.32,34.41015963]
[1735618157731,14.55892074,190.37,190.34,23.776884]
[1735618158911,6.2879,190.37,190.34,23.776884]
[1735618159916,1.5765,190.39,190.34,23.776884]
[1735618161133,1.5765,190.39,190.33,10.63327563]
[1735618161440,1.5765,190.39,190.31,11.42116759]
[1735618162915,1.5765,190.39,190.33,23.776884]
[1735618163845,1.5765,190.39,190.35,23.776884]
[1735618164149,6.2879,190.41,190.37,23.776884]
[1735618165456,6.2879,190.41,190.34,10.63327563]
[1735618165854,6.2879,190.41,190.35,10.63327563]
[1735618166047,6.2879,190.41,190.36,23.776884]
[1735618170349,6.2879,190.41,190.36,35.19799276]
[1735618170949,6.2879,190.41,190.37,10.63327563]
[1735618171163,1.6279,190.44,190.4,23.776884]
[1735618171338,1.6279,190.44,190.39,10.63327563]
[1735618171535,1.6279,190.44,190.39,23.776884]
[1735618171842,6.0303,190.45,190.4,10.63327563]
[1735618172049,1.6278,190.48,190.42,34.41015963]
[1735618172358,1.6278,190.48,190.43,11.42076558]
[1735618173553,6.0303,190.49,190.45,10.63327563]
[1735618173760,7.6581,190.53,190.46,23.776884]
[1735618176557,7.6581,190.53,190.5,10.63327563]
[1735618176759,7.6581,190.53,190.5,34.41015963]
[1735618177659,7.6581,190.53,190.5,23.776884]
[1735618179048,7.6581,190.53,190.43,0.78721903]
[1735618179241,7.6581,190.53,190.47,10.63327563]
[1735618180663,7.6581,190.53,190.48,34.41015963]
[1735618180859,7.6581,190.53,190.49,10.63327563]
[1735618181358,7.6581,190.53,190.48,34.41015963]
[1735618182144,7.9397,190.58,190.51,34.41015963]
[1735618183140,7.9397,190.58,190.53,23.776884]
[1735618183667,7.9397,190.58,190.51,10.63327563]
[1735618186255,7.9397,190.58,190.53,23.776884]
[1735618189359,7.9397,190.58,190.5,23.776884]
[1735618189559,7.9397,190.58,190.53,23.776884]
[1735618191967,7.9397,190.58,190.52,10.63327563]
[1735618192177,7.9397,190.58,190.51,10.63327563]
[1735618192476,7.9397,190.58,190.5,34.41015963]
[1735618192775,7.9397,190.58,190.52,23.776884]
[1735618195981,7.9397,190.58,190.5,10.63327563]
[1735618197482,7.9397,190.58,190.51,23.776884]
[1735618200166,7.9397,190.58,190.51,10.63327563]
[1735618200483,7.9397,190.58,190.5,34.41015963]
[1735618201081,7.9397,190.58,190.52,23.776884]
[1735618201266,7.9397,190.58,190.52,34.41015963]
[1735618202988,7.9397,190.58,190.54,10.63327563]
[1735618203165,7.9397,190.58,190.55,23.776884]
[1735618203362,7.8128,190.65,190.56,10.63327563]
[1735618204165,7.8128,190.65,190.55,35.19713979]
[1735618204365,7.8128,190.65,190.57,23.776884]
[1735618205253,7.8128,190.65,190.55,11.42025579]
[1735618205488,7.8128,190.65,190.54,10.63327563]
[1735618205689,7.8128,190.65,190.55,10.63327563]
[1735618206075,7.8128,190.65,190.56,23.776884]
[1735618206870,7.8128,190.65,190.54,10.63327563]
[1735618207276,7.8128,190.65,190.53,34.41015963]
[1735618207674,7.8128,190.65,190.54,10.63327563]
[1735618210101,7.8128,190.65,190.54,11.42027689]
[1735618210487,7.8128,190.65,190.55,23.776884]
[1735618210699,7.8128,190.65,190.55,34.41015963]
[1735618212899,7.8128,190.65,190.55,23.776884]
[1735618213084,6.5858,190.63,190.53,10.63327563]
[1735618213680,6.5858,190.63,190.53,34.41015963]
[1735618217101,6.5858,190.63,190.54,10.63327563]
[1735618217312,6.5858,190.63,190.59,34.41015963]
[1735618217607,1.5668,190.64,190.61,23.776884]
[1735618219783,1.5668,190.64,190.59,10.63327563]
[1735618220397,1.5668,190.64,190.6,10.63327563]
[1735618221807,1.5668,190.64,190.61,23.776884]
[1735618222016,6.5858,190.68,190.61,23.776884]
[1735618222017,8.1526,190.68,190.61,35.19690476]
[1735618222385,8.1526,190.68,190.62,10.63327563]
[1735618223607,8.1526,190.68,190.61,35.19690476]
[1735618225519,8.1526,190.68,190.6,10.63327563]
[1735618226011,8.1526,190.68,190.61,10.63327563]
[1735618226479,8.1526,190.68,190.6,10.63327563]
[1735618226680,8.1526,190.68,190.6,34.41015963]
[1735618227707,8.1526,190.68,190.61,10.63327563]
[1735618228095,8.1526,190.68,190.61,34.41015963]
[1735618228602,8.1526,190.68,190.63,10.63327563]
[1735618229118,8.1526,190.68,190.62,10.63327563]
[1735618230114,8.1526,190.68,190.63,10.63327563]
[1735618230288,8.1526,190.68,190.64,23.776884]
[1735618233424,8.0433,190.74,190.67,10.63327563]
[1735618233587,8.0433,190.74,190.68,10.63327563]
[1735618234109,8.0433,190.74,190.69,10.63327563]
[1735618234321,8.0433,190.74,190.7,10.63327563]
[1735618234509,8.0433,190.74,190.69,10.63327563]
[1735618235628,8.0433,190.74,190.7,10.63327563]
[1735618235928,8.0433,190.74,190.71,10.63327563]
[1735618236085,8.0433,190.74,190.7,10.63327563]
[1735618236422,20.0,190.79,190.71,34.41015963]
[1735618236609,8.0433,190.82,190.71,34.41015963]
[1735618236811,20.0,190.79,190.73,10.63327563]
[1735618236990,8.0433,190.82,190.74,10.63327563]
[1735618237189,7.5433,190.82,190.74,10.63327563]
[1735618237527,7.5433,190.82,190.75,35.19634238]
[1735618237693,7.5433,190.82,190.77,10.63327563]
[1735618237883,7.5433,190.82,190.78,23.776884]
[1735618238091,7.5433,190.82,190.78,34.41015963]
[1735618238501,7.5433,190.82,190.77,0.7860448]
[1735618238502,7.5433,190.82,190.8,23.776884]
[1735618238732,1.5302,190.82,190.8,23.776884]
[1735618239219,1.5033,190.92,190.8,23.776884]
[1735618239429,20.0,190.9,190.78,10.63327563]
[1735618239914,20.0,190.9,190.79,23.776884]
[1735618240135,1.5033,190.92,190.79,23.776884]
[1735618240332,20.0,190.88,190.79,23.776884]
[1735618241644,20.0,190.88,190.8,10.63327563]
[1735618241848,6.1131,190.91,190.79,10.63327563]
[1735618242152,6.1131,190.91,190.79,11.41922872]
[1735618243416,6.1131,190.91,190.79,10.63327563]
[1735618243811,6.1131,190.91,190.79,23.776884]
[1735618244646,6.1131,190.91,190.79,35.19619021]
[1735618244861,6.1131,190.91,190.79,24.56291458]
[1735618245034,6.1131,190.91,190.81,23.776884]
[1735618247551,6.1131,190.91,190.82,10.63327563]
[1735618247721,6.1131,190.91,190.81,34.41015963]
[1735618247921,6.1131,190.91,190.8,10.63327563]
[1735618248121,6.1131,190.91,190.81,23.776884]
[1735618250050,6.1131,190.91,190.8,23.776884]
[1735618250660,20.0,190.88,190.75,1.626]
[1735618250951,20.0,190.88,190.79,10.63327563]
[1735618251153,1.5033,190.9,190.81,10.63327563]
[1735618251755,1.5033,190.9,190.81,23.776884]
[1735618254154,1.5033,190.9,190.8,23.776884]
[1735618254359,1.5033,190.9,190.8,20.0]
[1735618254532,20.0,190.88,190.78,10.63327563]
[1735618254737,20.0,190.88,190.77,24.52390676]
[1735618254954,20.0,190.88,190.78,34.41015963]
[1735618255160,20.0,190.88,190.8,23.776884]
[1735618256360,20.0,190.88,190.79,23.776884]
[1735618257358,1.5033,190.9,190.79,23.776884]
[1735618258355,1.5033,190.9,190.79,34.41015963]
[1735618258356,20.0,190.9,190.79,34.41015963]
[1735618258861,20.0,190.93,190.79,34.41015963]
[1735618259160,20.0,190.93,190.78,11.41927395]
[1735618259457,20.0,190.93,190.79,10.63327563]
[1735618260661,20.0,190.93,190.79,34.41015963]
[1735618260964,23.776884,190.92,190.78,10.63327563]
[1735618261281,20.0,190.89,190.77,10.63327563]
[1735618261430,27.9219,190.89,190.79,10.63327563]
[1735618261757,27.9219,190.89,190.79,11.41923917]
[1735618262253,7.9219,190.89,190.81,10.63327563]
[1735618262456,7.9219,190.89,190.82,10.63327563]
[1735618263362,1.6501,190.89,190.82,10.63327563]
[1735618263570,1.6501,190.89,190.77,6.4146]
[1735618263571,6.2718,190.93,190.83,35.19602719]
[1735618263760,6.2718,190.93,190.84,10.63327563]
[1735618264280,6.2718,190.93,190.85,0.78575207]
[1735618264483,6.2718,190.93,190.85,11.4190277]
[1735618265364,1.6501,190.96,190.86,34.41015963]
[1735618265579,1.6501,190.96,190.86,35.19579505]
[1735618266294,1.6501,190.96,190.87,10.63327563]
[1735618266578,1.6501,190.96,190.88,35.19575971]
[1735618267641,1.6501,190.96,190.88,23.776884]
[1735618269251,1.6501,190.96,190.88,10.63327563]
[1735618270482,6.2718,190.98,190.89,10.63327563]
[1735618270774,6.2718,190.98,190.9,23.776884]
[1735618270976,6.2718,190.98,190.89,0.78556906]
[1735618270977,6.2718,190.98,190.89,23.776884]
[1735618271355,1.5429,191.01,190.89,11.41880027]
[1735618272477,20.0,191.0,190.89,11.41880027]
[1735618274281,20.0,191.0,190.9,10.63327563]
[1735618274455,20.0,191.0,190.91,11.41874423]
[1735618274777,1.5429,191.01,190.92,34.41015963]
[1735618275679,1.5429,191.01,190.93,10.63327563]
[1735618275984,6.1806,191.03,190.93,10.63327563]
[1735618276794,1.6478,191.05,190.97,54.41015963]
[1735618277084,6.1806,191.07,190.98,10.63327563]
[1735618277280,6.1806,191.07,190.99,23.776884]
[1735618281177,6.1806,191.07,190.97,30.63327563]
[1735618281367,6.1806,191.07,190.97,20.0]
[1735618282498,6.1806,191.07,190.97,30.63327563]
[1735618282699,6.1806,191.07,190.96,10.63327563]
[1735618283000,6.1806,191.07,190.96,34.41015963]
[1735618283202,6.1806,191.07,190.99,10.63327563]
[1735618283504,1.6478,191.09,191.0,11.41851165]
[1735618283710,1.6478,191.09,191.01,23.776884]
[1735618284804,1.6478,191.09,191.0,11.41851165]
[1735618284999,1.6478,191.09,191.0,10.63327563]
[1735618285303,1.6478,191.09,191.0,11.41837076]
[1735618287209,1.6478,191.09,191.01,23.776884]
[1735618287379,1.6478,191.09,191.01,34.41015963]
[1735618289005,1.6478,191.09,190.98,13.0898]
[1735618289304,1.6478,191.09,190.99,10.63327563]
[1735618290499,20.0,191.08,190.99,10.63327563]
[1735618290713,20.0,191.08,190.95,13.0923]
[1735618290877,20.0,191.08,190.96,10.63327563]
[1735618291082,20.0,191.08,190.96,34.41015963]
[1735618291511,20.0,191.08,190.95,10.63327563]
[1735618292916,20.0,191.08,190.94,34.41015963]
[1735618293096,20.0,191.08,190.95,10.63327563]
[1735618293291,6.4262,191.08,190.94,10.63327563]
[1735618296219,25.232,191.13,190.91,10.63327563]
[1735618296220,1.5199,191.02,190.91,10.63327563]
[1735618296516,6.4262,191.01,190.9,10.63327563]
[1735618296887,6.4262,191.01,190.91,10.63327563]
[1735618297716,6.4262,191.01,190.89,23.776884]
[1735618297918,6.4262,191.01,190.9,10.63327563]
[1735618298806,6.4262,191.01,190.91,10.63327563]
[1735618300322,6.4262,191.01,190.93,10.63327563]
[1735618300826,6.4262,191.01,190.92,23.776884]
[1735618301026,6.4262,191.01,190.93,10.63327563]
[1735618302093,6.4262,191.01,190.91,23.776884]
[1735618302292,6.4262,191.01,190.93,10.63327563]
[1735618303122,6.4262,191.01,190.92,10.63327563]
[1735618303338,6.4262,191.01,190.9,20.0]
[1735618303505,6.4262,191.01,190.91,10.63327563]
[1735618304436,6.4262,191.01,190.9,30.63327563]
[1735618305224,6.4262,191.01,190.9,20.0]
[1735618305725,20.0,190.98,190.88,10.63327563]
[1735618306035,1.6633,190.97,190.86,10.63327563]
[1735618306203,1.6633,190.97,190.87,10.63327563]
[1735618311432,1.6633,190.97,190.84,13.88543926]
[1735618311607,1.6633,190.97,190.86,10.63327563]
[1735618311928,6.5034,190.96,190.86,10.63327563]
[1735618316836,6.5034,190.96,190.87,10.63327563]
[1735618318019,6.5034,190.96,190.86,10.63327563]
[1735618318852,6.5034,190.96,190.85,10.63327563]
[1735618319033,6.5034,190.96,190.84,10.63327563]
[1735618319341,6.5034,190.96,190.86,20.0]
[1735618324245,6.5034,190.96,190.86,30.63327563]
[1735618324653,6.5034,190.96,190.87,11.41897841]
[1735618324948,6.5034,190.96,190.89,23.776884]
[1735618325150,6.5034,190.96,190.88,10.63327563]
[1735618327957,6.5034,190.96,190.87,0.78570278]
[1735618327958,6.5034,190.96,190.91,10.63327563]
[1735618328116,1.6633,190.97,190.92,10.63327563]
[1735618328458,7.9671,191.01,190.93,10.63327563]
[1735618328625,7.9671,191.01,190.94,10.63327563]
[1735618328961,7.9671,191.01,190.93,10.63327563]
[1735618329325,7.9671,191.01,190.93,11.41865611]
[1735618330244,7.9671,191.01,190.93,10.63327563]
[1735618330747,7.9671,191.01,190.94,10.63327563]
[1735618331146,7.9671,191.01,190.93,10.63327563]
[1735618331324,7.9671,191.01,190.92,30.63327563]
[1735618331725,7.9671,191.01,190.93,11.41870913]
[1735618332751,7.9671,191.01,190.94,10.63327563]
[1735618334752,7.9671,191.01,190.93,11.41870913]
[1735618335433,7.9671,191.01,190.93,0.7854335]
[1735618335629,7.9671,191.01,190.92,20.0]
[1735618336450,7.9671,191.01,190.9,0.78541806]